fUSD/lending_fUSD_20260227
["ID","MTS","AMOUNT","RATE_DAILY","PERIOD"]
[406798826,1772201440900,-500.0,0.00013698,2]
[406798827,1772201440912,-500.0,0.00013698,2]
[406798828,1772201440922,-500.0,0.00013698,2]
[406798829,1772201440931,-500.0,0.00013698,2]
[406798830,1772201440940,-500.0,0.00013698,2]
[406798831,1772201440949,-500.0,0.00013698,2]
[406798832,1772201440959,-500.0,0.00013698,2]
[406798833,1772201440968,-500.0,0.00013698,2]
[406798834,1772201440977,-500.0,0.00013698,2]
[406798835,1772201440986,-500.0,0.00013698,2]
[406798836,1772201440995,-500.0,0.00013698,2]
[406798837,1772201441005,-500.0,0.00013698,2]
[406798838,1772201441014,-500.0,0.00013698,2]
[406798839,1772201441023,-500.0,0.00013698,2]
[406798840,1772201441032,-500.0,0.00013698,2]
[406798841,1772201441042,-500.0,0.00013698,2]
[406798842,1772201441052,-500.0,0.00013698,2]
[406798843,1772201441061,-500.0,0.00013698,2]
[406798844,1772201441071,-500.0,0.00013698,2]
[406798845,1772201441082,-500.0,0.00013698,2]
[406798846,1772201441091,-500.0,0.00013698,2]
[406798847,1772201441100,-500.0,0.00013698,2]
[406798848,1772201441109,-500.0,0.00013698,2]
[406798849,1772201441119,-500.0,0.00013698,2]
[406798850,1772201441128,-500.0,0.00013698,2]
[406798851,1772201441137,-500.0,0.00013698,2]
[406798852,1772201441147,-500.0,0.00013698,2]
[406798853,1772201441156,-500.0,0.00013698,2]
[406798854,1772201441165,-500.0,0.00013698,2]
[406798855,1772201441174,-500.0,0.00013698,2]
[406798856,1772201441183,-500.0,0.00013698,2]
[406798857,1772201441192,-500.0,0.00013698,2]
[406798858,1772201441201,-500.0,0.00013698,2]
[406798859,1772201441211,-500.0,0.00013698,2]
[406798860,1772201441220,-500.0,0.00013698,2]
[406798861,1772201441229,-500.0,0.00013698,2]
[406798862,1772201441239,-500.0,0.00013698,2]
[406798863,1772201441248,-500.0,0.00013698,2]
[406798864,1772201441258,-500.0,0.00013698,2]
[406798865,1772201441267,-500.0,0.00013698,2]
[406798866,1772201441277,-386.19326799,0.00013698,2]
[406798867,1772201441286,-500.0,0.00013698,2]
[406798868,1772201441295,-500.0,0.00013698,2]
[406798869,1772201441306,-500.0,0.00013698,2]
[406798870,1772201441315,-500.0,0.00013698,2]
[406798871,1772201441325,-500.0,0.00013698,2]
[406798872,1772201441335,-500.0,0.00013698,2]
[406798873,1772201441345,-500.0,0.00013698,2]
[406798874,1772201441354,-500.0,0.00013698,2]
[406798875,1772201441364,-500.0,0.00013698,2]
[406798876,1772201441373,-500.0,0.00013698,2]
[406798877,1772201441382,-500.0,0.00013698,2]
[406798878,1772201441392,-500.0,0.00013698,2]
[406798879,1772201441401,-222.17486236,0.00013698,2]
[406798880,1772201441411,-500.0,0.00013698,2]
[406798881,1772201441420,-500.0,0.00013698,2]
[406798882,1772201441430,-500.0,0.00013698,2]
[406798883,1772201441439,-500.0,0.00013698,2]
[406798884,1772201441450,-500.0,0.00013698,2]
[406798885,1772201441460,-500.0,0.00013698,2]
[406798886,1772201441469,-500.0,0.00013698,2]
[406798887,1772201441479,-500.0,0.00013698,2]
[406798888,1772201441488,-500.0,0.00013698,2]
[406798889,1772201441498,-500.0,0.00013698,2]
[406798890,1772201441508,-500.0,0.00013698,2]
[406798891,1772201441517,-500.0,0.00013698,2]
[406798892,1772201441526,-500.0,0.00013698,2]
[406798893,1772201441535,-500.0,0.00013698,2]
[406798894,1772201441545,-500.0,0.00013698,2]
[406798895,1772201441555,-500.0,0.00013698,2]
[406798896,1772201441564,-500.0,0.00013698,2]
[406798897,1772201441573,-500.0,0.00013698,2]
[406798898,1772201441582,-500.0,0.00013698,2]
[406798899,1772201441591,-500.0,0.00013698,2]
[406798900,1772201441601,-500.0,0.00013698,2]
[406798901,1772201441610,-500.0,0.00013698,2]
[406798902,1772201441620,-500.0,0.00013698,2]
[406798903,1772201441630,-500.0,0.00013698,2]
[406798904,1772201441639,-500.0,0.00013698,2]
[406798905,1772201441649,-500.0,0.00013698,2]
[406798906,1772201441659,-500.0,0.00013698,2]
[406798907,1772201441668,-500.0,0.00013698,2]
[406798908,1772201441678,-500.0,0.00013698,2]
[406798909,1772201441687,-500.0,0.00013698,2]
[406798910,1772201441696,-500.0,0.00013698,2]
[406798911,1772201441706,-500.0,0.00013698,2]
[406798912,1772201441716,-500.0,0.00013698,2]
[406798913,1772201441725,-500.0,0.00013698,2]
[406798914,1772201441735,-500.0,0.00013698,2]
[406798915,1772201441748,-500.0,0.00013698,2]
[406798916,1772201441757,-500.0,0.00013698,2]
[406798917,1772201441766,-500.0,0.00013698,2]
[406798918,1772201441778,-500.0,0.00013698,2]
[406798919,1772201441787,-500.0,0.00013698,2]
[406798920,1772201441796,-500.0,0.00013698,2]
[406798921,1772201441806,-593.89214064,0.00013698,2]
[406798922,1772201441815,-412.8162274,0.00013698,2]
[406798923,1772201441824,-297.82549676,0.00013698,2]
[406798924,1772201441833,-500.0,0.00013698,2]
[406798925,1772201441843,-509.25704796,0.00013698,2]
[406798926,1772201441852,-500.0,0.00013698,2]
[406798927,1772201441862,-500.0,0.00013698,2]
[406798928,1772201441871,-500.0,0.00013698,2]
[406798929,1772201441880,-500.0,0.00013698,2]
[406798930,1772201441889,-500.0,0.00013698,2]
[406798931,1772201441898,-334.85315255,0.00013698,2]
[406798932,1772201441907,-500.0,0.00013698,2]
[406798933,1772201441916,-500.0,0.00013698,2]
[406798934,1772201441925,-500.0,0.00013698,2]
[406798935,1772201441934,-200.0,0.00013699,2]
[406798936,1772201441943,-28193.52890243,0.00013909,2]
[406798937,1772201441952,-373.147686,0.00014208,7]
[406798938,1772201441961,-509.0,0.0001489,2]
[406798939,1772201441970,-28193.52890243,0.00014907,2]
[406798940,1772201441979,-250.0,0.00015,2]
[406798941,1772201441988,-160.0,0.00015313,2]
[406798942,1772201442118,-174.00015664,0.00015313,2]
[406798943,1772201442127,-500.0,0.00015397,2]
[406798944,1772201442136,-1860.53,0.00015471,2]
[406798945,1772201442147,-28193.52890243,0.00015904,2]
[406798946,1772201442159,-5000.00884198,0.000162,5]
[406798947,1772201442168,-158.83553081,0.00016438,2]
[406798948,1772201442178,-436.0,0.00016438,2]
[406798949,1772201442188,-436.0,0.00016493,2]
[406798950,1772201442198,-436.0,0.00016548,2]
[406798951,1772201442207,-207.967867,0.00016562,2]
[406798952,1772201442216,-15913.006924,0.00016599,7]
[406798953,1772201442224,-436.0,0.00016602,2]
[406798954,1772201442234,-436.0,0.00016657,2]
[406798955,1772201442243,-436.0,0.00016712,2]
[406798956,1772201442252,-165.5,0.00016712,2]
[406798957,1772201442261,-436.0,0.00016767,2]
[406798958,1772201442270,-436.0,0.00016822,2]
[406798959,1772201442279,-150.0,0.00016857,2]
[406798960,1772201442288,-150.0,0.00016858,2]
[406798961,1772201442298,-150.0,0.00016859,2]
[406798962,1772201442308,-150.0,0.0001686,2]
[406798963,1772201442317,-150.0,0.00016861,2]
[406798964,1772201442326,-150.0,0.00016862,2]
[406798965,1772201442336,-150.0,0.00016863,2]
[406798966,1772201442346,-150.0,0.00016864,2]
[406798967,1772201442355,-150.0,0.00016865,2]
[406798968,1772201442364,-150.0,0.00016866,2]
[406798969,1772201442373,-436.0,0.00016876,2]
[406798970,1772201442382,-28193.52890243,0.00016902,2]
[406798971,1772201442391,-436.0,0.00016931,2]
[406798972,1772201442401,-436.0,0.00016986,2]
[406798973,1772201442410,-300.0,0.00017,2]
[406798974,1772201442419,-436.0,0.00017041,2]
[406798975,1772201442428,-436.0,0.00017096,2]
[406798976,1772201442438,-436.0,0.0001715,2]
[406798977,1772201442447,-436.0,0.00017205,2]
[406798978,1772201442457,-436.0,0.0001726,2]
[406798979,1772201442467,-436.0,0.00017315,2]
[406798980,1772201442477,-436.0,0.0001737,2]
[406798981,1772201442486,-436.0,0.00017424,2]
[406798982,1772201442497,-436.0,0.00017479,2]
[406798983,1772201442507,-436.0,0.00017534,2]
[406798984,1772201442515,-436.0,0.00017589,2]
[406798985,1772201442524,-2567.89189091,0.00017604,2]
[406798986,1772201442533,-151.0,0.00017641,2]
[406798987,1772201442542,-436.0,0.00017643,2]
[406798988,1772201442551,-453.83648665,0.00017698,2]
[406798989,1772201442560,-1908.794423,0.00017759,7]
[406798990,1772201442570,-2400.0,0.000178,6]
[406798991,1772201442578,-500.0,0.00017808,2]
[406798992,1772201442587,-500.0,0.00017863,2]
[406798993,1772201442597,-28193.52890243,0.000179,2]
[406798994,1772201442606,-400.0,0.000179,6]
[406798995,1772201442616,-500.0,0.00017918,2]
[406798996,1772201442625,-187.270847,0.00017951,7]
[406798997,1772201442634,-1223.586172,0.00017951,7]
[406798998,1772201442643,-500.0,0.00017972,2]
[406798999,1772201442653,-501.97857854,0.00017973,2]
[406799000,1772201442662,-327.89337357,0.00017973,2]
[406799001,1772201442672,-194.70355038,0.00017973,2]
[406799002,1772201442681,-500.0,0.00017973,2]
[406799004,1772201442690,-500.0,0.00017973,2]
[406799007,1772201442699,-500.0,0.00017973,2]
[406799009,1772201442708,-500.0,0.00017973,2]
[406799011,1772201442717,-505.28465419,0.00017973,2]
[406799013,1772201442726,-500.0,0.00017973,2]
[406799016,1772201442738,-504.75046136,0.00017973,2]
[406799019,1772201442749,-500.0,0.00017973,2]
[406799020,1772201442758,-500.0,0.00017973,2]
[406799021,1772201442767,-500.0,0.00017973,2]
[406799022,1772201442777,-501.50601316,0.00017973,2]
[406799024,1772201442786,-502.48858977,0.00017973,2]
[406799026,1772201442795,-500.0,0.00017973,2]
[406799028,1772201442807,-500.0,0.00017973,2]
[406799030,1772201442816,-500.0,0.00017973,2]
[406799032,1772201442824,-500.0,0.00017973,2]
[406799034,1772201442833,-500.0,0.00017973,2]
[406799036,1772201442842,-500.0,0.00017973,2]
[406799038,1772201442851,-500.0,0.00017973,2]
[406799040,1772201442860,-500.0,0.00017973,2]
[406799042,1772201442869,-500.82123681,0.00017973,2]
[406799044,1772201442878,-500.0,0.00017973,2]
[406799045,1772201442887,-500.0,0.00017973,2]
[406799046,1772201442896,-555.40539763,0.00017973,2]
[406799047,1772201442905,-500.0,0.00017973,2]
[406799048,1772201442914,-500.0,0.00017973,2]
[406799049,1772201442923,-504.17214118,0.00017973,2]
[406799050,1772201442936,-500.0,0.00017973,2]
[406799051,1772201442945,-502.2190815,0.00017973,2]
[406799052,1772201442955,-500.0,0.00017973,2]
[406799053,1772201442964,-500.0,0.00017973,2]
[406799054,1772201442973,-310.9054072,0.00017973,2]
[406799055,1772201442981,-504.20237615,0.00017973,2]
[406799056,1772201442990,-507.14846603,0.00017973,2]
[406799057,1772201442999,-500.0,0.00017973,2]
[406799058,1772201443009,-564.44693438,0.00017973,2]
[406799059,1772201443018,-500.0,0.00017973,2]
[406799060,1772201443027,-500.0,0.00017973,2]
[406799061,1772201443036,-500.0,0.00017973,2]
[406799062,1772201443046,-419.22132892,0.0001799,2]
[406799063,1772201443057,-509.0,0.00017991,4]
[406799064,1772201443066,-154.86311374,0.00017997,2]
[406799065,1772201443075,-136314.68053651,0.00018,2]
[406799067,1772201443178,-321.19548855,0.00018,2]
[406799068,1772201443349,-451.1400963,8.719e-05,2]
[406799070,1772201443360,-786.8779718,8.719e-05,2]
[406799071,1772201443378,-99.14532776,8.719e-05,2]
[406799072,1772201443389,-218670.96781291,0.00018,2]
[406799077,1772201445666,-1154.64909799,0.00018,2]
[406799078,1772201445726,-721.56809003,0.00018,2]
[406799079,1772201445740,-37410.29618541,0.00018,2]
[406799080,1772201445951,-1850.66774993,0.00018,2]
[406799082,1772201455993,296.4219,8.1e-05,2]
[406799107,1772202216207,1013.54,8.006e-05,2]
[406799109,1772202436320,200.0,7.8e-05,2]
[406799110,1772202438416,400.0,7.9e-05,2]
[406799111,1772202440528,600.0,8e-05,2]
[406799112,1772202443036,800.0,9e-05,3]
[406799113,1772202467529,222.0,0.0001789,120]
[406799114,1772202477625,155.0,0.0001789,120]
[406799123,1772202631839,-413.403511,8.349e-05,2]
[406799125,1772202631914,-872.081489,8.349e-05,2]
[406799126,1772202631924,-210.366,8.349e-05,2]
[406799127,1772202631934,-220.0,8.349e-05,2]
[406799128,1772202631944,-250.0,8.35e-05,2]
[406799129,1772202631953,-1013.54,8.351e-05,2]
[406799130,1772202631963,-158.03014453,8.418e-05,2]
[406799131,1772202631973,-272.67490808,8.418e-05,2]
[406799132,1772202631982,-500.0,8.418e-05,2]
[406799133,1772202631992,-500.0,8.418e-05,2]
[406799134,1772202632002,-500.0,8.418e-05,2]
[406799135,1772202632011,-500.0,8.418e-05,2]
[406799136,1772202632021,-500.0,8.418e-05,2]
[406799137,1772202632031,-306.15849281,8.418e-05,2]
[406799138,1772202632041,-21609.0771669,8.419e-05,2]
[406799139,1772202632054,-474.12914604,8.419e-05,2]
[406799140,1772202632069,-72517.80739927,8.419e-05,2]
[406799141,1772202632081,-395.29912589,8.419e-05,2]
[406799142,1772202632093,-14195.18713073,8.419e-05,2]
[406799143,1772202632107,-1900.0,8.419e-05,2]
[406799144,1772202632125,-2701.61761818,8.419e-05,2]
[406799145,1772202632146,-624.35787928,8.419e-05,2]
[406799146,1772202632158,-1000.0,8.419e-05,2]
[406799147,1772202632170,-510.78051524,8.419e-05,2]
[406799148,1772202632182,-1028.98723093,8.419e-05,2]
[406799149,1772202632193,-1952.66125016,8.419e-05,2]
[406799150,1772202632205,-2222.13091084,8.419e-05,2]
[406799151,1772202632217,-4434.76220405,8.419e-05,2]
[406799152,1772202632228,-3197.1583477,8.419e-05,2]
[406799154,1772202638103,-822.83,8.419e-05,2]
[406799318,1772202640382,-17527.0,8.419e-05,2]
[406799326,1772202640505,-616.0,8.419e-05,2]
[406799328,1772202640516,-6947.05478971,8.419e-05,2]
[406799329,1772202640528,-4783.16358,8.419e-05,2]
[406799331,1772202640539,-2385.31666582,8.419e-05,2]
[406799383,1772202643309,-987.61314542,8.419e-05,2]
[406799386,1772202643320,-266038.51449358,8.419e-05,2]
[406799388,1772202643331,-7614.20796968,8.419e-05,2]
[406799390,1772202643356,-1697.18831677,8.419e-05,2]
[406799402,1772202724596,150.0,0.00011233,120]
[406799403,1772202939348,-1028.388,8.251e-05,2]
[406799404,1772202939380,-168.293,8.251e-05,2]
[406799407,1772203286663,1384.2549,8.251e-05,2]
[406799408,1772203297115,822.71,8.153e-05,2]
[406799409,1772203297218,168.293,8.153e-05,2]
[406799410,1772203347315,8679.64062478,8.181e-05,2]
[406799411,1772203347346,1141.74329564,8.181e-05,2]
[406799412,1772203347375,178.62607958,8.181e-05,2]
[406799413,1772203347398,4371.36088654,8.181e-05,2]
[406799414,1772203482410,5000.01,8.119e-05,2]
[406799415,1772203482431,1743.6202,8.119e-05,2]
[406799416,1772203506973,500.0,8.119e-05,2]
[406799417,1772203642162,200.0,7.8e-05,2]
[406799418,1772203644609,500.0,7.9e-05,2]
[406799419,1772203646883,800.0,8e-05,2]
[406799439,1772203832288,-544.02,8.192e-05,2]
[406799440,1772203832301,-389.98,8.192e-05,2]
[406799441,1772203832317,-14498.0,8.192e-05,2]
[406799442,1772203832328,-151.0,8.216e-05,2]
[406799443,1772203832532,-151.0,8.216e-05,2]
[406799444,1772203832542,-154.86311374,8.216e-05,2]
[406799445,1772203832552,-311.79538809,8.218e-05,2]
[406799446,1772203832562,-150.0,8.218e-05,2]
[406799447,1772203832571,-300.0,8.218e-05,2]
[406799448,1772203832581,-1200.0,8.218e-05,2]
[406799449,1772203832591,-21373.3353399,8.219e-05,2]
[406799450,1772203832603,-107039.96487349,8.219e-05,2]
[406799451,1772203832619,-823.641,8.219e-05,2]
[406799469,1772203838132,-932.44184216,8.219e-05,2]
[406799470,1772203838145,-1869830.61694445,8.219e-05,2]
[406799471,1772203838154,-4133.1798,8.219e-05,2]
[406799472,1772203838328,-33914.6003,8.219e-05,2]
[406799473,1772203838338,-332.985596,8.219e-05,2]
[406799474,1772203838348,-436.035972,8.219e-05,2]
[406799475,1772203838358,-359.670163,8.219e-05,2]
[406799476,1772203838368,-1814.16742851,8.3e-05,2]
[406799477,1772203838378,-33171.00129421,8.34e-05,2]
[406799478,1772203838387,-150.0,8.393e-05,2]
[406799479,1772203838397,-150.0,8.394e-05,2]
[406799480,1772203838410,-150.0,8.395e-05,2]
[406799481,1772203838420,-150.0,8.396e-05,2]
[406799482,1772203838430,-150.0,8.397e-05,2]
[406799483,1772203838439,-150.0,8.398e-05,2]
[406799484,1772203838450,-150.0,8.399e-05,2]
[406799485,1772203838459,-150.0,8.4e-05,2]
[406799486,1772203838469,-150.0,8.401e-05,2]
[406799487,1772203838482,-150.0,8.402e-05,2]
[406799489,1772203838491,-207.967867,8.403e-05,2]
[406799490,1772203838500,-1586.97413421,8.419e-05,2]
[406799492,1772203838509,-917.91915087,8.419e-05,2]
[406799494,1772203838518,-425.09831696,8.419e-05,2]
[406799496,1772203838527,-8961.50435011,8.419e-05,2]
[406799498,1772203838537,-168.0,8.479e-05,2]
[406799500,1772203838547,-1566.0,8.499e-05,2]
[406799502,1772203838557,-231.0,8.531e-05,2]
[406799504,1772203838566,-294.0,8.548e-05,2]
[406799506,1772203838576,-187.0,8.582e-05,2]
[406799508,1772203838585,-888.0,8.619e-05,2]
[406799510,1772203838596,-555.0,8.619e-05,2]
[406799512,1772203838605,-222.0,8.619e-05,2]
[406799514,1772203838615,-155.0,8.619e-05,2]
[406799516,1772203838624,-333.0,8.619e-05,2]
[406799518,1772203838634,-444.0,8.619e-05,2]
[406799520,1772203838643,-555.0,8.619e-05,2]
[406799522,1772203838652,-666.0,8.619e-05,2]
[406799524,1772203838661,-555.0,8.619e-05,2]
[406799526,1772203838670,-555.0,8.696e-05,2]
[406799528,1772203838679,-1013.54,8.696e-05,2]
[406799530,1772203838688,-53314.76,8.98e-05,2]
[406799532,1772203838698,-213.66,9e-05,2]
[406799534,1772203838707,-500.0,9.002e-05,2]
[406799536,1772203838716,-54664.91,9.002e-05,2]
[406799538,1772203838726,-250.0,9.04e-05,2]
[406799540,1772203838735,-250.0,9.04e-05,2]
[406799542,1772203838744,-250.0,9.04e-05,2]
[406799544,1772203838753,-195.0,9.04e-05,2]
[406799546,1772203838763,-255.0,9.04e-05,2]
[406799548,1772203838772,-420.0,9.04e-05,2]
[406799550,1772203838781,-1680.0,9.04e-05,2]
[406799552,1772203838790,-1013.54,9.04e-05,2]
[406799554,1772203838799,-318.38,9.098e-05,2]
[406799556,1772203838809,-1105.0,9.117e-05,2]
[406799558,1772203838818,-3397.72,9.148e-05,2]
[406799560,1772203838827,-221.79640327,9.154e-05,2]
[406799562,1772203838836,-99601.24958072,9.187e-05,2]
[406799564,1772203838845,-198.0,9.188e-05,2]
[406799566,1772203838854,-811.0,9.234e-05,2]
[406799568,1772203838864,-999.0,9.238e-05,2]
[406799570,1772203838873,-200.0,9.246e-05,2]
[406799572,1772203838883,-394.0,9.257e-05,2]
[406799574,1772203838893,-500.0,9.276e-05,2]
[406799576,1772203838902,-222.0,9.278e-05,2]
[406799578,1772203838912,-1013.54,9.385e-05,2]
[406799580,1772203838921,-500.0,9.55e-05,2]
[406799582,1772203838930,-674.381556,9.573e-05,2]
[406799584,1772203838940,-1013.54,9.73e-05,2]
[406799586,1772203838949,-500.0,9.824e-05,2]
[406799588,1772203838958,-600.0,9.849e-05,2]
[406799590,1772203838968,-166.81,9.849e-05,2]
[406799591,1772203838977,-433.0,9.944e-05,2]
[406799594,1772203838987,-587.0,9.944e-05,2]
[406799595,1772203838996,-2351.0,9.944e-05,2]
[406799597,1772203839005,-151.0,0.0001,2]
[406799598,1772203839015,-151.0,0.0001,2]
[406799599,1772203839024,-151.0,0.0001,2]
[406799601,1772203839034,-151.0,0.0001,2]
[406799603,1772203839043,-151.0,0.0001,2]
[406799605,1772203839053,-151.0,0.0001,2]
[406799607,1772203839063,-151.0,0.0001,2]
[406799609,1772203839073,-151.0,0.0001,2]
[406799611,1772203839084,-151.0,0.0001,2]
[406799613,1772203839094,-151.0,0.0001,2]
[406799615,1772203839104,-151.0,0.0001,2]
[406799617,1772203839114,-151.0,0.0001,2]
[406799619,1772203839123,-151.0,0.0001,2]
[406799621,1772203839136,-151.0,0.0001,2]
[406799623,1772203839147,-151.0,0.0001,2]
[406799625,1772203839156,-151.0,0.0001,2]
[406799627,1772203839166,-151.0,0.0001,2]
[406799629,1772203839175,-151.0,0.0001,2]
[406799631,1772203839185,-151.0,0.0001,2]
[406799633,1772203839194,-151.0,0.0001,2]
[406799635,1772203839203,-151.0,0.0001,2]
[406799637,1772203839214,-151.0,0.0001,2]
[406799639,1772203839224,-151.0,0.0001,2]
[406799641,1772203839233,-151.0,0.0001,2]
[406799643,1772203839242,-151.0,0.0001,2]
[406799645,1772203839251,-151.0,0.0001,2]
[406799646,1772203839261,-151.0,0.0001,2]
[406799648,1772203839271,-151.0,0.0001,2]
[406799650,1772203839280,-151.0,0.0001,2]
[406799652,1772203839290,-151.0,0.0001,2]
[406799653,1772203839299,-151.0,0.0001,2]
[406799654,1772203839308,-151.0,0.0001,2]
[406799655,1772203839318,-151.0,0.0001,2]
[406799656,1772203839328,-5750.94563178,0.0001,3]
[406799657,1772203839337,-1053.03002661,0.0001,2]
[406799658,1772203839346,-1643.78018194,0.0001,2]
[406799659,1772203839356,-337.0,0.0001,2]
[406799660,1772203839365,-337.0,0.0001,2]
[406799661,1772203839375,-338.83518363,0.0001,2]
[406799662,1772203839385,-419.22132892,0.0001,2]
[406799663,1772203839395,-214.78,0.00010058,2]
[406799664,1772203839407,-1013.54,0.00010075,2]
[406799665,1772203839419,-500.0,0.00010098,2]
[406799666,1772203839428,-500.0,0.00010219,2]
[406799667,1772203839438,-500.0,0.00010299,2]
[406799668,1772203839447,-637.19570717,0.00010299,2]
[406799669,1772203839458,-569.83248233,0.00010299,2]
[406799670,1772203839467,-450.93959115,0.00010299,2]
[406799671,1772203839480,-500.0,0.00010299,2]
[406799672,1772203839490,-500.0,0.00010299,2]
[406799673,1772203839500,-500.0,0.00010299,2]
[406799674,1772203839509,-543.75451416,0.000103,2]
[406799675,1772203839519,-500.0,0.000103,2]
[406799676,1772203839528,-500.0,0.000103,2]
[406799677,1772203839537,-869.50668288,0.000103,2]
[406799678,1772203839546,-500.0,0.000103,2]
[406799679,1772203839555,-500.0,0.000103,2]
[406799680,1772203839564,-500.0,0.000103,2]
[406799681,1772203839574,-500.0,0.000103,2]
[406799682,1772203839583,-500.0,0.000103,2]
[406799683,1772203839592,-500.0,0.000103,2]
[406799684,1772203839601,-500.0,0.000103,2]
[406799685,1772203839610,-500.0,0.000103,2]
[406799686,1772203839619,-500.0,0.000103,2]
[406799687,1772203839629,-747.36498412,0.000103,2]
[406799688,1772203839638,-500.0,0.000103,2]
[406799689,1772203839647,-500.0,0.000103,2]
[406799690,1772203839656,-500.0,0.000103,2]
[406799691,1772203839665,-500.0,0.000103,2]
[406799692,1772203839674,-500.0,0.000103,2]
[406799693,1772203839683,-500.0,0.000103,2]
[406799694,1772203839692,-500.0,0.000103,2]
[406799695,1772203839701,-751.80444789,0.000103,2]
[406799696,1772203839711,-500.0,0.000103,2]
[406799697,1772203839720,-500.0,0.000103,2]
[406799698,1772203839730,-500.0,0.000103,2]
[406799699,1772203839740,-500.0,0.000103,2]
[406799700,1772203839749,-500.0,0.000103,2]
[406799701,1772203839759,-520.0,0.000103,2]
[406799702,1772203839768,-699.99,0.000103,2]
[406799703,1772203839778,-500.0,0.000103,2]
[406799704,1772203839792,-500.0,0.000103,2]
[406799705,1772203839801,-500.0,0.000103,2]
[406799706,1772203839812,-500.0,0.000103,2]
[406799707,1772203839822,-500.0,0.000103,2]
[406799708,1772203839833,-500.0,0.000103,2]
[406799709,1772203839842,-500.0,0.000103,2]
[406799710,1772203839852,-500.0,0.000103,2]
[406799711,1772203839862,-636.56274826,0.000103,2]
[406799712,1772203839872,-500.0,0.000103,2]
[406799713,1772203839883,-500.0,0.000103,2]
[406799717,1772203840023,-500.0,0.000103,2]
[406799718,1772203840033,-500.0,0.000103,2]
[406799719,1772203840042,-500.0,0.000103,2]
[406799720,1772203840051,-977.54963407,0.000103,2]
[406799721,1772203840060,-500.0,0.000103,2]
[406799722,1772203840070,-690.87839752,0.000103,2]
[406799723,1772203840080,-611.11529278,0.000103,2]
[406799724,1772203840089,-700.0,0.000103,2]
[406799725,1772203840098,-700.0,0.000103,2]
[406799726,1772203840108,-700.0,0.000103,2]
[406799728,1772203840118,-700.0,0.000103,2]
[406799729,1772203840127,-700.0,0.000103,2]
[406799730,1772203840139,-700.0,0.000103,2]
[406799731,1772203840148,-700.0,0.000103,2]
[406799732,1772203840158,-700.0,0.000103,2]
[406799733,1772203840167,-700.0,0.000103,2]
[406799734,1772203840177,-700.0,0.000103,2]
[406799735,1772203840187,-700.0,0.000103,2]
[406799736,1772203840196,-700.0,0.000103,2]
[406799737,1772203840206,-753.13710309,0.000103,2]
[406799738,1772203840215,-939.26433333,0.00010331,2]
[406799739,1772203840225,-164.5,0.0001035,2]
[406799740,1772203840234,-500.0,0.00010372,2]
[406799741,1772203840244,-166.18,0.00010378,2]
[406799743,1772203840253,-1013.54,0.00010419,2]
[406799744,1772203840262,-169.58,0.00010426,2]
[406799745,1772203840271,-500.0,0.00010646,2]
[406799746,1772203840279,-1013.54,0.00010764,2]
[406799747,1772203840288,-500.0,0.00010829,2]
[406799748,1772203840297,-500.0,0.00010829,2]
[406799749,1772203840305,-250.0,0.00010859,2]